[Event "II Llinars Open 2022"]
[Site "Llinars del Valles"]
[Date "2022.07.01"]
[Round "7.6"]
[White "Munoz, Miguel"]
[Black "Juan Lepp, Jaime Boris"]
[Result "1-0"]
[ECO "C22"]
[WhiteElo "2421"]
[BlackElo "1921"]
[Annotator "TA"]
[PlyCount "97"]
[EventDate "2022.06.24"]
[EventType "swiss"]
[EventCountry "ESP"]
[SourceTitle "playchess.com"]
[Source "ChessBase"]
[SourceQuality "1"]
[TimeControl "5400+30"]

{[%evp 9,97,-15,-25,-41,-35,-32,-18,-22,0,1,58,71,119,112,110,122,117,112,120,111,151,132,166,159,207,181,163,-24,-13,-15,-45,-34,16,29,17,0,56,39,47,0,194,191,192,199,293,308,301,294,291,275,320,288,319,303,294,246,433,412,416,404,396,393,379,185,300,295,510,522,518,431,494,492,562,560,520,495,845,833,600,752,961,910,796,734,1857,1832,1841,1743,1404,931]} 1. e4 {[%emt 0:08:40]} e5 {[%emt 0:00:09]} 2. d4 {[%emt 0:00:09]} exd4 {[%emt 0:00:17]} 3. Qxd4 {[%emt 0:00:07]} Nc6 {[%emt 0:00:28]} 4. Qe3 {[%emt 0:00:08]} Nf6 {[%emt 0:01:15]} 5. Bd2 {[%emt 0:00:06]} Be7 {[%emt 0:05:27]} 6. c4 {[%emt 0:01:05] Inhibits d5. C22: Centre Game.} O-O {[%emt 0:03:52]} 7. Nc3 {[%emt 0:00:11]} d6 {[%emt 0:02:46]} 8. O-O-O {[%emt 0:00:17] The position is equal.} Ng4 {[%emt 0:05:04]} 9. Qe1 {[%emt 0:00:26] [#]} Be6 $146 {[%emt 0:02:31]} (9... Bf6 $11) ({Predecessor:} 9... f5 10. h3 Nf6 11. exf5 Bxf5 12. g4 Bg6 13. f4 Re8 14. f5 Bf7 15. Nf3 Nd7 {1-0 (34) Munoz,M (2451)-Soler Lopez,H (1979) Barcelona 2016}) 10. f4 $14 {[%cal Bf2f4,Bf4f5][%mdl 32]} f5 {[%emt 0:18:07]} (10... a6 $142) 11. h3 $1 $16 {[%emt 0:00:57] aiming for exf5.} Nf6 {[%emt 0:03:27]} 12. exf5 {[%emt 0:05:29]} Bxf5 {[%emt 0:00:57]} 13. g4 {[%emt 0:00:10]} Bg6 {[%emt 0:02:29] [#]} 14. Nf3 $1 {[%emt 0:00:27]} Re8 {[%emt 0:00:31]} 15. f5 {[%emt 0:00:06]} Bf7 {[%emt 0:00:50]} 16. Ng5 {[%emt 0:00:07]} Ne5 (16... Nd7 $16 {is a better defense.} 17. Nxf7 Kxf7) 17. Nxf7 {[%emt 0:01:31]} Nxf7 {[%emt 0:10:56]} 18. g5 $2 {[%emt 0:01:19]} ({Better is} 18. Qg3 $18) 18... Nd7 $11 {[%emt 0:00:54]} 19. Qg3 {[%emt 0:00:56] Threatens to win with f6.} (19. g6 $2 {[#]} Bh4 $1 20. gxf7+ Kxf7 21. Qe6+ Rxe6 $19) 19... Bxg5 {[%emt 0:03:27]} 20. Rg1 {[%emt 0:00:20][%cal Rd2g5]} Bxd2+ {[%emt 0:01:03]} (20... Bf6 $1 $15) 21. Rxd2 {[%emt 0:00:19][%csl Gg1][%cal Rg3g7,Bd1d2,Bd2g2,Bg2g7][%mdl 32]} (21. Kxd2 Qf6 22. Kc2 c6 $17) 21... Qf6 {[%emt 0:03:42]} 22. Rdg2 $36 {[%emt 0:03:26][%cal Rg3g7][%mdl 2048] Black is under pressure.} Qh6+ {[%emt 0:00:37]} (22... Kh8 $1 $11) 23. Kc2 $14 {[%emt 0:01:42][%cal Rg3g7]} Kh8 {[%emt 0:07:04]} 24. Nd5 {[%emt 0:03:19]} (24. Qxg7+ $14 Qxg7 25. Rxg7) 24... Rac8 $2 {[%emt 0:02:03] White stays focused until the end.} (24... Rg8 $11 {and Black stays safe.}) 25. Qxg7+ $18 {[%emt 0:00:47]} Qxg7 {[%emt 0:00:04]} 26. Rxg7 {[%emt 0:00:10]} Rg8 {[%emt 0:00:58] [#]} (26... Nfe5 $142) 27. Rxf7 $1 {[%emt 0:02:54] Strongly threatening Rxg8+.} Rxg1 {[%emt 0:00:36]} 28. Rxd7 {[%emt 0:00:05]} Rg7 {[%emt 0:05:18]} (28... Rxf1 29. Nf6 Rf2+ 30. Kd1 Rf1+ 31. Ke2) 29. Ne7 {[%emt 0:01:10]} Re8 {[%emt 0:01:30]} 30. f6 {[%emt 0:00:51]} Rf7 {[%emt 0:01:24]} 31. Bd3 {[%emt 0:00:41]} (31. Rxc7 $6 Rxf6 32. Bd3 (32. Rxb7 Rxf1 33. Nd5 a5 $17) 32... Rf7 $18) 31... Rxf6 {[%emt 0:00:47]} 32. Nf5 {[%emt 0:01:52]} ({Don't take} 32. Rxc7 $6 Rf7 $18) 32... Ref8 $2 {[%emt 0:02:20]} (32... Rc8 {might work better.} 33. Kc3 Re6) 33. Rxc7 {[%emt 0:00:20]} Rxf5 {[%emt 0:00:25]} 34. Bxf5 {[%emt 0:00:11]} Rxf5 {[%emt 0:00:01]} 35. Rxb7 {[%emt 0:00:12][%mdl 4096] Endgame KR-KR} a5 {[%emt 0:00:39]} 36. Rb3 {[%emt 0:03:48]} (36. Rb5 $142 Rf4 37. Kb3 (37. Rxa5 Rxc4+ 38. Kb1 Kg7 $18)) 36... Kg7 {[%emt 0:00:32]} (36... Rf4 {was called for.} 37. Rb8+ Kg7) 37. Rd3 {[%emt 0:00:04]} Rc5 $2 {[%emt 0:00:45]} (37... Rh5 38. a3 (38. Rxd6 Rxh3 39. Ra6 Rh4 $18) 38... Rh4) 38. Kc3 {[%emt 0:00:18] White is clearly winning.} Rc6 {[%emt 0:00:26]} 39. Rd5 {[%emt 0:00:27]} Ra6 {[%emt 0:00:30]} 40. b3 {[%emt 0:01:07][%cal Bb2b3,Bb3b4,Bb4b5,Bb5b6][%mdl 32]} Kf6 {[%emt 0:00:36]} 41. Kb2 {[%emt 0:00:08]} Ke6 {[%emt 0:01:33]} 42. Ka3 {[%emt 0:02:49]} a4 {[%emt 0:00:22]} (42... Ra7 $142 43. Ka4 Rf7 44. Rxa5 Rf2) 43. b4 {[%emt 0:01:31]} Rc6 {[%emt 0:00:37]} 44. Rd4 {[%emt 0:00:06]} Ra6 {[%emt 0:02:14]} 45. b5 {[%emt 0:00:29]} Ra7 {[%emt 0:00:23]} 46. Kb4 {[%emt 0:00:08] b6 is the strong threat.} Ke5 {[%emt 0:00:13]} 47. Rd5+ {[%emt 0:00:15]} Ke6 {[%emt 0:00:08]} 48. b6 {[%emt 0:00:17]} Rb7 {[%emt 0:00:12]} 49. Kb5 {[%emt 0:00:14] Weighted Error Value: White=0.21 (precise) /Black=0.46} 1-0

[Event "II Llinars Open 2022"]
[Site "Llinars del Valles"]
[Date "2022.07.01"]
[Round "7.7"]
[White "Diaz Perez, Michel Alejandro"]
[Black "Parra Ordorica, Arnau"]
[Result "1-0"]
[ECO "A03"]
[WhiteElo "2439"]
[BlackElo "2001"]
[Annotator "TA"]
[PlyCount "109"]
[EventDate "2022.06.24"]
[EventType "swiss"]
[EventCountry "ESP"]
[SourceTitle "playchess.com"]
[Source "ChessBase"]
[SourceQuality "1"]
[TimeControl "5400+30"]

{[%evp 13,109,0,0,-27,-14,-25,-23,-22,-6,-6,-12,-15,9,0,74,2,51,47,67,79,81,-53,66,46,108,108,105,87,108,116,111,93,166,162,207,232,206,197,204,175,201,213,212,203,215,212,257,235,316,327,322,306,316,259,281,267,333,319,342,336,423,410,725,727,689,626,1050,1033,992,990,920,913,1133,1118,1460,1393,1587,1593,4134,2983,2757,2305,2510,2221,29979,29980,29980,29980,29982,29983,29983,29984,29987,29988,29989,29990,29991,29992]} 1. f4 {[%emt 0:00:10]} d5 {[%emt 0:00:19]} 2. Nf3 {[%emt 0:00:07]} Nf6 {[%emt 0:00:19]} 3. g3 {[%emt 0:00:17]} g6 {[%emt 0:00:23]} 4. Bg2 {[%emt 0:00:11]} Bg7 {[%emt 0:00:02]} 5. d3 {[%emt 0:00:17]} O-O {[%emt 0:00:33]} 6. O-O {[%emt 0:00:17]} c5 {[%emt 0:00:19]} 7. Qe1 {[%emt 0:01:34]} d4 {[%emt 0:01:27]} 8. h3 {[%emt 0:04:17] A03: Bird's Opening with 1...d5.} Nc6 {[%emt 0:03:13]} 9. e4 {[%emt 0:01:26]} dxe3 {[%emt 0:00:35]} 10. Qxe3 {[%emt 0:06:58] [#] Black has an edge.} Qd6 $146 {[%emt 0:05:34]} ({Predecessor:} 10... b6 11. Na3 Bb7 12. Nc4 Rc8 13. Nfe5 b5 14. Nxc6 Bxc6 15. Ne5 Bxg2 16. Kxg2 Nd7 {½-½ (37) Hoynck van Papendrecht,F (2134)-Avchinikov,V (2208) ICCF email 2015}) 11. Na3 {[%emt 0:04:04]} Nd5 {[%emt 0:01:54]} 12. Qe2 {[%emt 0:02:10]} a6 {[%emt 0:16:46]} 13. Nc4 {[%emt 0:01:02]} Nd4 {[%emt 0:06:38]} (13... Qc7 $11) 14. Qe4 {[%emt 0:17:44]} (14. Nxd4 $16 Bxd4+ 15. Kh2) 14... Qe6 {[%emt 0:13:00]} (14... Qc7 $11 {should be considered.} 15. Nxd4 (15. Qxd5 Rd8 $17) 15... Bxd4+ 16. Kh2 Be6) 15. Nxd4 $14 {[%emt 0:01:17]} Bxd4+ {[%emt 0:02:11]} 16. Kh2 {[%emt 0:00:58]} Rd8 {[%emt 0:06:44]} 17. Ne5 {[%emt 0:19:21]} (17. g4 $16) 17... Nf6 {[%emt 0:10:45]} (17... Nb4 $1 $15 18. c3 Bxe5 19. cxb4 Bd4) 18. Qe1 {[%emt 0:05:48]} Nd7 {[%emt 0:01:09] [#] White stays focused until the end.} (18... Ra7 $14) 19. Nc4 $1 $16 {[%emt 0:07:26] Hoping for Qa5.} Qxe1 {[%emt 0:05:22]} 20. Rxe1 {[%emt 0:00:03][%cal Bf1e1,Be1e7,Be7c7][%mdl 32]} Bf6 {[%emt 0:00:08]} 21. g4 {[%emt 0:01:32]} Kf8 {[%emt 0:01:27]} 22. f5 {[%emt 0:04:48] White is more active.} gxf5 {[%emt 0:01:19]} (22... g5 $16 {was necessary.}) 23. Bh6+ {[%emt 0:00:49]} Bg7 {[%emt 0:03:49]} 24. Bxg7+ {[%emt 0:00:46]} Kxg7 {[%emt 0:00:03]} 25. Rxe7 {[%emt 0:00:10]} fxg4 {[%emt 0:01:30]} 26. hxg4 {[%emt 0:02:09][%cal Bh3g4,Bg4g5][%mdl 32] [#] Rf1 is the strong threat.} Nf6 {[%emt 0:01:08]} 27. g5 {[%emt 0:01:56]} ({Worse is} 27. Bxb7 Ra7 28. Rxf7+ (28. g5 Nd5 $15) 28... Kxf7 $11) 27... Ng8 {[%emt 0:02:46]} 28. Rc7 {[%emt 0:02:04] Threatens to win with Nb6.} ({Stronger than} 28. Bxb7 Rb8 29. Bxc8 Nxe7 $17) 28... Rd7 {[%emt 0:04:46]} 29. Rxc5 {[%emt 0:00:29]} Rd8 {[%emt 0:03:31]} 30. Rc7 {[%emt 0:01:32] And now Ne5 would win.} Rd7 {[%emt 0:00:26]} 31. Rxd7 {[%emt 0:04:32]} Bxd7 {[%emt 0:00:14]} 32. Bxb7 {[%emt 0:00:09]} Rb8 {[%emt 0:00:10]} 33. Be4 {[%emt 0:02:39]} Be6 {[%emt 0:00:35]} 34. b3 {[%emt 0:00:48][%cal Bb2b3,Bb3b4,Bb4b5,Bb5b6,Bb6b7][%mdl 32]} Bxc4 {[%emt 0:00:22]} 35. dxc4 $18 {[%emt 0:00:24][%mdl 4096] Endgame KRB-KRN} Re8 {[%emt 0:00:06]} 36. Bd3 {[%emt 0:01:05]} Re5 {[%emt 0:01:17]} 37. b4 {[%emt 0:01:01]} a5 {[%emt 0:00:10]} (37... Ne7 $142 38. Rb1 Nc8) 38. b5 {[%emt 0:00:33]} Ne7 {[%emt 0:00:06]} 39. Rb1 {[%emt 0:01:37]} Kf8 {[%emt 0:01:03]} 40. b6 {[%emt 0:00:16]} Nc6 {[%emt 0:00:23]} 41. Rb5 {[%emt 0:00:22]} Re7 {[%emt 0:02:11]} 42. b7 {[%emt 0:03:02]} Nb8 {[%emt 0:00:07]} 43. Kg3 {[%emt 0:00:38]} Ke8 {[%emt 0:01:11]} 44. Kf4 {[%emt 0:00:08]} Kd8 {[%emt 0:00:20]} 45. Bxh7 {[%emt 0:01:41]} f6 {[%emt 0:00:17]} 46. Be4 {[%emt 0:00:25]} fxg5+ {[%emt 0:00:08]} 47. Rxg5 {[%emt 0:00:05]} Kc7 {[%emt 0:00:24]} 48. Rxa5 {[%emt 0:01:07] White wants to mate with Rc5+.} Kb6 {[%emt 0:00:24] Inhibits Rc5.} 49. Rb5+ {[%emt 0:00:38] White mates.} Ka6 {[%emt 0:00:23]} 50. a4 {[%emt 0:00:22]} Rc7 {[%emt 0:00:30]} 51. c5 {[%emt 0:00:27][%cal Bc4c5,Bc5c6][%mdl 32]} Rf7+ {[%emt 0:02:52]} 52. Ke5 {[%emt 0:00:25]} Rg7 {[%emt 0:01:15]} 53. c6 {[%emt 0:00:39]} Rc7 {[%emt 0:00:38]} 54. Kd6 {[%emt 0:00:15]} Rg7 {[%emt 0:00:15]} 55. Bf5 {[%emt 0:00:42] Weighted Error Value: White=0.21 (precise) /Black=0.37} 1-0

[Event "II Llinars Open 2022"]
[Site "Llinars del Valles"]
[Date "2022.07.01"]
[Round "7.8"]
[White "Garcia Gallardo, Victor"]
[Black "Casares Bonals, Asier"]
[Result "0-1"]
[ECO "A34"]
[WhiteElo "1983"]
[BlackElo "1741"]
[Annotator "NA"]
[PlyCount "88"]
[EventDate "2022.06.24"]
[EventType "swiss"]
[EventCountry "ESP"]
[SourceTitle "playchess.com"]
[Source "ChessBase"]
[SourceQuality "1"]
[TimeControl "5400+30"]

1. Nf3 {[%emt 0:00:04]} Nf6 {[%emt 0:00:47]} 2. c4 {[%emt 0:00:21]} c5 {[%emt 0:03:37]} 3. Nc3 {[%emt 0:00:58]} d5 {[%emt 0:08:28]} 4. cxd5 {[%emt 0:00:11]} Nxd5 {[%emt 0:00:17]} 5. e3 {[%emt 0:00:16]} a6 {[%emt 0:03:46]} 6. Bc4 {[%emt 0:08:29]} Nxc3 {[%emt 0:07:29]} 7. bxc3 {[%emt 0:00:05]} e6 {[%emt 0:07:02]} 8. a4 {[%emt 0:01:12]} Nc6 {[%emt 0:03:47]} 9. d4 {[%emt 0:03:40]} cxd4 {[%emt 0:00:55]} 10. cxd4 {[%emt 0:03:20]} Bd6 {[%emt 0:04:49]} 11. O-O {[%emt 0:01:00]} Bd7 {[%emt 0:00:54]} 12. Bb2 {[%emt 0:02:18]} O-O {[%emt 0:00:59]} 13. Qe2 {[%emt 0:00:16]} Rc8 {[%emt 0:01:02]} 14. Bd3 {[%emt 0:10:05]} Qe7 {[%emt 0:10:00]} 15. Nd2 {[%emt 0:14:36]} Nb4 {[%emt 0:16:55]} 16. Bb1 {[%emt 0:16:54]} b5 {[%emt 0:10:21]} 17. a5 {[%emt 0:00:09]} f5 {[%emt 0:02:09]} 18. Nf3 {[%emt 0:04:22]} Bc6 {[%emt 0:04:11]} 19. Ne5 {[%emt 0:06:29]} Bb7 {[%emt 0:00:38]} 20. f4 {[%emt 0:03:37]} Rc7 {[%emt 0:01:34]} 21. e4 {[%emt 0:03:20]} Rfc8 {[%emt 0:04:24]} 22. Ba3 {[%emt 0:03:44]} Nc2 {[%emt 0:02:25]} 23. exf5 {[%emt 0:10:31]} Nxa3 {[%emt 0:02:04]} 24. Be4 {[%emt 0:02:56]} Rc2 {[%emt 0:01:13]} 25. Qe1 {[%emt 0:00:04]} Bxe4 {[%emt 0:01:11]} 26. Qxe4 {[%emt 0:00:03]} exf5 {[%emt 0:00:18]} 27. Qxf5 {[%emt 0:00:03]} R2c3 {[%emt 0:01:22]} 28. Rae1 {[%emt 0:03:19]} Rf8 {[%emt 0:00:33]} 29. Qe4 {[%emt 0:01:14]} Bxe5 {[%emt 0:00:34]} 30. fxe5 {[%emt 0:00:02]} Nc4 {[%emt 0:00:28]} 31. Rxf8+ {[%emt 0:00:14]} Qxf8 {[%emt 0:00:02]} 32. Rf1 {[%emt 0:00:14]} Qd8 {[%emt 0:00:34]} 33. Qf5 {[%emt 0:01:37]} h6 {[%emt 0:01:16]} 34. e6 {[%emt 0:00:10]} Re3 {[%emt 0:00:17]} 35. d5 {[%emt 0:00:13]} Nd6 {[%emt 0:00:37]} 36. Qf4 {[%emt 0:00:26]} Re4 {[%emt 0:00:17]} 37. Qf3 {[%emt 0:01:04]} Re5 {[%emt 0:00:29]} 38. Rc1 {[%emt 0:01:06]} Nf5 {[%emt 0:01:08]} 39. Rd1 {[%emt 0:00:11]} Nd6 {[%emt 0:00:11]} 40. Qc3 {[%emt 0:00:23]} Nc4 {[%emt 0:00:28]} 41. Qd4 {[%emt 0:01:02]} Re2 {[%emt 0:00:50]} 42. d6 {[%emt 0:00:28]} Rxe6 {[%emt 0:00:22]} 43. Qd5 {[%emt 0:00:09]} Qxd6 {[%emt 0:00:11]} 44. Qa8+ {[%emt 0:00:02]} Qf8 {[%emt 0:00:46]} 0-1

[Event "II Llinars Open 2022"]
[Site "Llinars del Valles"]
[Date "2022.07.02"]
[Round "8.1"]
[White "Ayats Llobera, Gerard"]
[Black "Narciso Dublan, Marc"]
[Result "1/2-1/2"]
[ECO "B01"]
[WhiteElo "2423"]
[BlackElo "2464"]
[Annotator "TA"]
[PlyCount "38"]
[EventDate "2022.06.24"]
[EventType "swiss"]
[EventCountry "ESP"]
[SourceTitle "playchess.com"]
[Source "ChessBase"]
[SourceQuality "1"]
[TimeControl "5400+30"]

{[%evp 15,38,19,20,13,14,22,25,1,21,5,12,0,0,0,0,0,7,0,0,-15,8,15,16,21,31]} 1. e4 {[%emt 0:00:12]} d5 {[%emt 0:00:23]} 2. exd5 {[%emt 0:00:03]} Qxd5 {[%emt 0:00:09]} 3. Nc3 {[%emt 0:00:03]} Qa5 {[%emt 0:00:21]} 4. d4 {[%emt 0:00:05]} Nf6 {[%emt 0:00:13]} 5. Nf3 {[%emt 0:00:21]} Bf5 {[%emt 0:00:18]} 6. Bc4 {[%emt 0:00:44]} e6 {[%emt 0:00:30]} 7. O-O {[%emt 0:00:30]} Nbd7 {[%emt 0:03:18]} 8. Bd2 {[%emt 0:01:26]} c6 {[%emt 0:01:32] [#]} 9. Nd5 $1 {[%emt 0:07:14] B01: Scandinavian Defence.} Qd8 {[%emt 0:00:36]} 10. Nxf6+ {[%emt 0:00:33]} Nxf6 {[%emt 0:00:14]} 11. h3 {[%emt 0:00:17] [#] White has an edge.} Be7 $146 {[%emt 0:02:56] The position is equal.} ({Predecessor:} 11... Bd6 12. Re1 O-O 13. c3 h6 14. Qe2 Qc7 15. Bb3 c5 16. Rad1 Rad8 17. Be3 Be4 {0-1 (54) Maksimovic,B (2455)-Grischuk,A (2758) Chess.com INT 2022}) 12. Bb3 {[%emt 0:00:45]} O-O {[%emt 0:01:31]} 13. Qe2 {[%emt 0:00:27]} a5 {[%emt 0:14:08]} 14. a4 {[%emt 0:02:53]} Qb6 {[%emt 0:09:00]} 15. Rad1 {[%emt 0:02:50]} Rfd8 {[%emt 0:07:45]} 16. Bc1 {[%emt 0:05:47]} Be4 {[%emt 0:03:07]} 17. Bc4 {[%emt 0:16:46]} Bd5 {[%emt 0:15:03]} 18. Bd3 {[%emt 0:00:40]} Bxf3 {[%emt 0:01:03]} 19. Qxf3 {[%emt 0:02:39]} Rd7 {[%emt 0:07:07] A rather calm draw.  Weighted Error Value: White=0.07 (flawless) /Black=0.05 (flawless)} 1/2-1/2

[Event "II Llinars Open 2022"]
[Site "Llinars del Valles"]
[Date "2022.07.02"]
[Round "8.2"]
[White "Segura Marsa, Andres"]
[Black "Garcia Ramos, Daniel"]
[Result "0-1"]
[ECO "C50"]
[WhiteElo "1862"]
[BlackElo "2441"]
[Annotator "TA"]
[PlyCount "100"]
[EventDate "2022.06.24"]
[EventType "swiss"]
[EventCountry "ESP"]
[SourceTitle "playchess.com"]
[Source "ChessBase"]
[SourceQuality "1"]
[TimeControl "5400+30"]

{[%evp 9,100,-19,-23,-35,8,19,18,0,0,-27,-30,-39,-35,-35,-35,-29,-23,-14,12,-22,-21,-8,9,-31,-2,-12,0,-43,-40,-68,-20,-23,-35,-32,-16,-79,-79,-79,-79,-111,-90,-88,-72,-160,-131,-128,-124,-188,-168,-294,-284,-270,-262,-244,-225,-412,-418,-395,-377,-456,-447,-1172,-1044,-1643,-1614,-1490,-1317,-1283,-1233,-2408,-1865,-29962,-29962,-29968,-29967,-7570,-5978,-29976,-29979,-29981,-29982,-29983,-29982,-29982,-29983,-29983,-29984,-29984,-29985,-29985,-29986,-29986,-29986]} 1. e4 {[%emt 0:01:09]} e5 {[%emt 0:00:10]} 2. Nf3 {[%emt 0:00:22]} Nc6 {[%emt 0:00:04]} 3. Bc4 {[%emt 0:00:37]} Bc5 {[%emt 0:00:11]} 4. d4 {[%emt 0:00:40]} Bxd4 {[%emt 0:02:33]} 5. Nxd4 {[%emt 0:00:12]} Nxd4 {[%emt 0:00:12]} 6. Be3 {[%emt 0:00:18] C50: Hungarian Defence and Giuoco Pianissimo.} (6. Qh5 Qe7 7. Qd1 Nf6 $17) 6... b5 {[%emt 0:06:53] [#]} 7. Bxd4 $146 {[%emt 0:10:27]} ({Predecessor:} 7. Bd3 a6 8. O-O {1-0 (8) Kepinski,J (1599)-Margot,A (1400) FICGS email 2007}) 7... exd4 {[%emt 0:00:24]} 8. Bxb5 {[%emt 0:05:27] The position is equal.} Qg5 {[%emt 0:05:17]} 9. Bf1 {[%emt 0:04:07]} (9. Qxd4 $5 Qc1+ 10. Ke2 (10. Qd1 $2 Qxb2 11. Na3 Qxa3 $19) 10... Qxh1 11. Qxg7 $11) 9... Nf6 {[%emt 0:02:42]} 10. Nd2 {[%emt 0:02:08]} O-O {[%emt 0:01:55] White must now prevent ...Re8.} 11. Nf3 {[%emt 0:07:11][%csl LRd4,LRg5]} Qa5+ {[%emt 0:11:44]} 12. Qd2 {[%emt 0:02:25]} Qxd2+ {[%emt 0:00:05]} 13. Nxd2 {[%emt 0:00:03]} Re8 {[%emt 0:00:14]} 14. O-O-O {[%emt 0:01:38]} Ng4 {[%emt 0:03:07]} 15. Bc4 {[%emt 0:03:22]} Bb7 {[%emt 0:02:52]} (15... Re7 $5 {[%cal Rg4f2]} 16. Rdf1 d6 $11) 16. Rdf1 {[%emt 0:03:35]} c5 {[%emt 0:05:41]} ({But not} 16... Bxe4 17. f3 $16) 17. h3 {[%emt 0:02:38]} Ne5 $36 {[%emt 0:08:58][%mdl 2048] Black is more active.} 18. Bd3 {[%emt 0:09:28]} f5 {[%emt 0:33:27]} 19. f3 {[%emt 0:05:43]} f4 {[%emt 0:01:05] Black is more active.} (19... fxe4 $15 20. Bxe4 d5) 20. Nc4 {[%emt 0:06:12]} Nxd3+ {[%emt 0:01:02]} 21. cxd3 {[%emt 0:00:04]} Ba6 {[%emt 0:00:00]} 22. b3 {[%emt 0:04:04]} (22. Kc2 $11) 22... Bxc4 $17 {[%emt 0:02:47]} 23. bxc4 {[%emt 0:03:30][%mdl 4096] Endgame KRR-KRR} Re6 {[%emt 0:00:28]} 24. Kc2 {[%emt 0:06:26]} Ra6 {[%emt 0:00:28]} 25. Ra1 {[%emt 0:01:43]} Rb8 {[%emt 0:00:21]} 26. a3 {[%emt 0:03:49]} ({White should try} 26. a4) 26... Rbb6 {[%emt 0:00:26]} 27. Rhf1 {[%emt 0:04:12]} Kf7 {[%emt 0:01:22]} 28. Ra2 {[%emt 0:02:52]} (28. a4 $17) 28... Kg6 $19 {[%emt 0:05:33]} 29. g4 {[%emt 0:05:29]} (29. a4 {was worth a try.}) 29... fxg3 {[%emt 0:00:27]} 30. Rg1 {[%emt 0:00:11]} Kg5 {[%emt 0:00:17]} 31. Rxg3+ {[%emt 0:00:45] [#]} Kf4 $1 {[%emt 0:00:04]} 32. Rxg7 {[%emt 0:00:19] [#]} (32. Rg4+ Kxf3 33. Rg1 (33. Rxg7 $2 Rg6 $19)) 32... Rg6 $1 {[%emt 0:00:15]} 33. Rxg6 {[%emt 0:02:57]} Rxg6 {[%emt 0:00:02] KR-KR} 34. Kb3 {[%emt 0:00:08]} Kxf3 {[%emt 0:00:17] ...Ke3 is the strong threat.} 35. Ka4 {[%emt 0:01:02]} (35. Ra1 $142 Ke2 36. Kc2) 35... Ke3 {[%emt 0:00:43]} 36. Kb5 {[%emt 0:00:36]} Rc6 {[%emt 0:00:21]} 37. Rg2 {[%emt 0:00:46]} a6+ {[%emt 0:00:06]} 38. Ka5 {[%emt 0:00:22]} Kxd3 {[%emt 0:00:06]} 39. Rg7 {[%emt 0:00:43]} Kxe4 {[%emt 0:00:13]} 40. Rxd7 {[%emt 0:00:41]} d3 {[%emt 0:00:04]} 41. Ka4 {[%emt 0:00:30]} Rb6 {[%emt 0:01:21]} 42. Ka5 {[%emt 0:00:46]} Rb1 {[%emt 0:00:56] ( -> ...Ke3)} 43. Kxa6 {[%emt 0:00:14]} Ke3 {[%emt 0:00:23] Black mates.} 44. Re7+ {[%emt 0:01:14]} Kd4 {[%emt 0:00:00]} 45. Rxh7 {[%emt 0:00:24]} d2 {[%emt 0:00:35]} 46. Rd7+ {[%emt 0:00:25]} Kc3 {[%emt 0:00:07]} 47. a4 {[%emt 0:01:12]} d1=Q {[%emt 0:00:14]} 48. Rxd1 {[%emt 0:00:13]} Rxd1 {[%emt 0:00:04]} 49. Kb5 {[%emt 0:00:26]} Kd4 {[%emt 0:00:15]} 50. a5 {[%emt 0:00:40]} Rh1 {[%emt 0:00:10] Weighted Error Value: White=0.76/Black=0.05 (flawless)} 0-1